[Event "Mongolian Championship Women 2022"]
[Site "Chingis Khentii"]
[Date "2022.05.19"]
[Round "7.4"]
[White "Munkhzul, Turmunkh"]
[Black "Mungunzul, Bat-Erdene"]
[Result "1/2-1/2"]
[ECO "C42"]
[WhiteElo "2294"]
[BlackElo "2091"]
[Annotator "TA"]
[PlyCount "120"]
[EventDate "2022.05.12"]
[EventType "tourn"]
[EventCountry "MGL"]
[SourceTitle "playchess.com"]
[Source "ChessBase"]
[SourceQuality "1"]
[TimeControl "40/5400+30:1800+30"]

{[%evp 13,120,0,0,0,0,0,9,4,19,0,17,10,14,12,38,35,50,48,42,40,41,45,38,21,22,19,29,25,56,52,49,63,64,52,52,60,70,53,68,67,86,84,92,97,87,89,90,88,89,88,92,93,98,97,102,63,86,79,65,45,54,54,54,0,0,0,0,0,0,0,0,0,0,0,0,0,0,0,0,0,0,0,0,0,0,0,0,0,0,0,0,0,0,0,0,0,0,0,0,0,0,0,0,0,0,0,0,0,0]} 1. e4 {[%emt 0:00:02]} e5 {[%emt 0:00:07]} 2. Nf3 {[%emt 0:00:11]} Nf6 {[%emt 0:00:12]} 3. Nxe5 {[%emt 0:00:20]} d6 {[%emt 0:00:11]} 4. Nf3 {[%emt 0:00:22]} Nxe4 {[%emt 0:00:12]} 5. Qe2 {[%emt 0:00:44]} Qe7 {[%emt 0:00:38]} 6. d3 {[%emt 0:00:29]} Nf6 {[%emt 0:00:44]} 7. Qxe7+ {[%emt 0:00:44]} Bxe7 {[%emt 0:00:18]} 8. g3 {[%emt 0:00:36] C42: Petroff Defence: 3 Nxe5 and unusual White 3rd moves.} Nc6 {[%emt 0:10:17]} 9. Bd2 {[%emt 0:03:04]} O-O {[%emt 0:03:03]} 10. Bg2 {[%emt 0:01:38] [#]} Bd7 $146 {[%emt 0:04:26]} ({Predecessor:} 10... Re8 11. O-O Bf8 12. Nc3 Nb4 13. Nb5 Na6 14. a3 c6 15. Nc3 Nc7 16. Rfe1 Bg4 {1-0 (51) Serrano Salvador,E-Pila Diez,M Onati 1994}) 11. O-O {[%emt 0:01:59]} Rfe8 {[%emt 0:02:34]} 12. Nc3 {[%emt 0:05:44]} Nb4 {[%emt 0:02:42]} 13. Rac1 {[%emt 0:08:06]} Bc6 {[%emt 0:07:29]} 14. a3 {[%emt 0:03:02]} Nbd5 {[%emt 0:00:22]} 15. Nd4 {[%emt 0:00:50]} Nxc3 {[%emt 0:01:35]} 16. Bxc6 {[%emt 0:06:58]} ({But not} 16. Bxc3 Bxg2 17. Kxg2 Nd5 $11) 16... bxc6 {[%emt 0:01:50]} 17. Bxc3 {[%emt 0:03:57]} c5 {[%emt 0:00:27]} 18. Nc6 {[%emt 0:01:42]} Nd5 {[%emt 0:03:23]} 19. Rfe1 {[%emt 0:09:34]} Kf8 {[%emt 0:04:23]} 20. Rb1 {[%emt 0:04:47][%cal Oc3g7]} Bf6 {[%emt 0:04:41]} 21. Bxf6 {[%emt 0:01:56]} Nxf6 {[%emt 0:05:08]} 22. b4 $1 {[%emt 0:02:32]} cxb4 {[%emt 0:01:42]} 23. axb4 {[%emt 0:01:03]} a6 {[%emt 0:00:27]} 24. Kf1 {[%emt 0:05:08]} Nd7 {[%emt 0:04:58]} 25. Ra1 {[%emt 0:09:44] White is more active.} Rxe1+ {[%emt 0:05:03]} 26. Kxe1 $14 {[%emt 0:00:28][%mdl 4096] Endgame KRN-KRN} Re8+ {[%emt 0:00:27]} 27. Kd2 {[%emt 0:00:45]} Nb8 {[%emt 0:36:41]} 28. Nd4 {[%emt 0:03:25]} Ke7 {[%emt 0:00:00]} 29. Nf5+ {[%emt 0:03:03]} Kf6 {[%emt 0:00:00]} 30. Ne3 {[%emt 0:00:11] [#] Black must now prevent Nd5+.} Ke6 {[%emt 0:00:00] Prevents Nd5.} 31. c4 {[%emt 0:00:44][%cal Bc2c4,Bc4c5][%mdl 32]} Kd7 {[%emt 0:00:00]} 32. Nd5 {[%emt 0:01:59]} c6 {[%emt 0:00:00]} 33. Ne3 {[%emt 0:02:19]} g6 {[%emt 0:00:00]} 34. d4 {[%emt 0:02:55]} Kc7 {[%emt 0:00:00]} 35. c5 {[%emt 0:02:23]} d5 {[%emt 0:00:00] Against Nc4} 36. b5 {[%emt 0:03:34]} axb5 {[%emt 0:00:00]} 37. Ra7+ {[%emt 0:00:07]} Kd8 $1 {[%emt 0:00:00]} 38. Rb7 {[%emt 0:01:11]} (38. Rxf7 $14 Re7 39. Rxe7 Kxe7 40. Nc2) 38... Nd7 $11 {[%emt 0:00:00] The position is equal.} 39. Nc2 {[%emt 0:00:52]} Re6 {[%emt 0:00:00]} 40. Nb4 {[%emt 0:00:00]} h6 {[%emt 0:00:00]} 41. Ra7 {[%emt 0:04:48]} Kc8 {[%emt 0:03:25]} 42. Kd3 {[%emt 0:06:12]} Rf6 {[%emt 0:05:54]} 43. Ke3 {[%emt 0:01:48]} Re6+ {[%emt 0:01:16]} 44. Kd2 {[%emt 0:04:51]} Rf6 {[%emt 0:00:36]} 45. Kd3 {[%emt 0:02:34]} Re6 {[%emt 0:01:30]} 46. h3 {[%emt 0:00:18]} Rf6 {[%emt 0:00:42]} 47. Ke3 {[%emt 0:02:47]} Re6+ {[%emt 0:00:18]} 48. Kd2 {[%emt 0:01:13]} Rf6 {[%emt 0:00:12]} 49. Kd3 {[%emt 0:00:35]} Nb8 {[%emt 0:02:29]} (49... Rxf2 50. Nxc6 Nf8 51. Ne7+ Kb8 52. c6 Rf3+ 53. Kd2 (53. Ke2 Kxa7 54. Kxf3 Ne6 $17) 53... Rf2+ 54. Kc3 b4+ 55. Kb3 $18) 50. Ke3 {[%emt 0:02:05]} Re6+ {[%emt 0:02:59]} 51. Kd2 {[%emt 0:00:31]} Rf6 {[%emt 0:02:49]} 52. Ke3 {[%emt 0:01:43]} Re6+ {[%emt 0:00:11]} 53. Kd2 {[%emt 0:01:47]} Rf6 {[%emt 0:00:12]} 54. Nd3 {[%emt 0:02:05]} Nd7 {[%emt 0:01:06]} 55. h4 {[%emt 0:00:23]} g5 {[%emt 0:02:03]} 56. hxg5 {[%emt 0:01:40]} hxg5 {[%emt 0:00:02]} 57. Ra8+ {[%emt 0:00:45]} Kc7 {[%emt 0:03:10]} 58. Ra7+ {[%emt 0:00:22]} Kc8 {[%emt 0:00:09]} 59. Ra8+ {[%emt 0:00:12]} Kc7 {[%emt 0:00:14]} 60. Ra7+ {[%emt 0:01:13]} Kc8 {[%emt 0:00:13] Weighted Error Value: White=0.04 (flawless) /Black=0.03 (flawless)} 1/2-1/2

[Event "Mongolian Championship Women 2022"]
[Site "Chingis Khentii"]
[Date "2022.05.19"]
[Round "7.5"]
[White "Nomindalai Tumurbaatar"]
[Black "Munguntuul, Batkhuyag"]
[Result "1-0"]
[ECO "A68"]
[WhiteElo "2111"]
[BlackElo "2443"]
[Annotator "TA"]
[PlyCount "81"]
[EventDate "2022.05.12"]
[EventType "tourn"]
[EventCountry "MGL"]
[SourceTitle "playchess.com"]
[Source "ChessBase"]
[SourceQuality "1"]
[TimeControl "40/5400+30:1800+30"]

{[%evp 21,81,-8,17,13,29,30,72,74,70,69,77,75,73,56,81,75,73,50,90,85,358,369,426,407,381,395,606,635,628,607,606,561,781,787,867,861,851,852,822,463,767,459,612,450,450,450,449,435,1372,1391,1381,1390,1310,1372,1323,1323,1258,1258,1220,1158,719,623]} 1. d4 {[%emt 0:00:10]} Nf6 {[%emt 0:00:06]} 2. c4 {[%emt 0:00:10]} c5 {[%emt 0:00:17]} 3. d5 {[%emt 0:08:27]} e6 {[%emt 0:00:34]} 4. Nc3 {[%emt 0:00:58]} exd5 {[%emt 0:00:09]} 5. cxd5 {[%emt 0:00:07]} d6 {[%emt 0:00:05]} 6. e4 {[%emt 0:02:07]} g6 {[%emt 0:01:36]} 7. f4 {[%emt 0:01:35]} Bg7 {[%emt 0:01:05]} 8. Nf3 {[%emt 0:00:12]} O-O {[%emt 0:00:26]} 9. Bd3 {[%emt 0:01:16]} Re8 {[%emt 0:03:39]} 10. O-O {[%emt 0:10:17]} c4 {[%emt 0:22:23]} 11. Bc2 {[%emt 0:15:59]} b5 {[%emt 0:24:40]} 12. a3 {[%emt 0:03:49] A68: Modern Benoni: Four Pawns Attack without 9...Re8.} Qb6+ {[%emt 0:01:58]} 13. Kh1 {[%emt 0:01:14]} Nbd7 {[%emt 0:00:12]} 14. Qe1 $1 {[%emt 0:08:13] White is better.} a6 {[%emt 0:13:41]} 15. Be3 {[%emt 0:02:32][%cal Bc1e3,Be3f2,Bf2h4][%mdl 32] [#]} Qd8 $146 {[%emt 0:00:21]} ({Predecessor:} 15... Qc7 16. Bd4 Bb7 17. Qh4 Qd8 18. g4 Nc5 19. Rae1 Nfd7 {1-0 (49) Iljin,T (2394)-Ivlev,A (2081) Astrakhan 2012}) 16. Qd2 {[%emt 0:01:26] White is more active.} Bb7 {[%emt 0:00:40]} 17. Rae1 {[%emt 0:01:09]} Rc8 {[%emt 0:00:43]} 18. Bf2 {[%emt 0:07:43]} (18. Bd4 {feels hotter.} Nc5 19. f5 Rc7 20. Qf4) 18... Nc5 {[%emt 0:05:13]} 19. Bh4 {[%emt 0:01:40] Threatens to win with e5.} Qd7 {[%emt 0:00:12] [#]} 20. f5 $1 {[%emt 0:13:09]} gxf5 $2 {[%emt 0:08:23][%mdl 8192] [#] Black cannot hold the game after this.} (20... Ng4 $16) 21. Nd4 $1 $18 {[%emt 0:09:57]} Nfxe4 {[%emt 0:05:11]} 22. Nxe4 {[%emt 0:02:25]} Nxe4 {[%emt 0:00:04]} (22... fxe4 $2 23. Nf5 Re5 24. Nxg7 $18 (24. Qg5 Rxf5 25. Rxf5 Re8 $14)) 23. Bxe4 {[%emt 0:00:23]} fxe4 {[%emt 0:02:34]} (23... Rxe4 $142 24. Nxf5 Rxe1 25. Qxe1 f6 26. Ne7+ Kf7 27. Nxc8 Bxc8 28. Bxf6 Bxf6) 24. Nf5 {[%emt 0:00:19] White is clearly winning.} Re5 {[%emt 0:06:56]} 25. Nxg7 {[%emt 0:03:31]} Qg4 {[%emt 0:00:26]} 26. Bf6 {[%emt 0:00:07]} e3 {[%emt 0:01:24]} 27. Rxe3 {[%emt 0:01:27]} Rxe3 {[%emt 0:00:01]} 28. Qxe3 {[%emt 0:00:02] Nf5 would kill now.} Bxd5 {[%emt 0:00:06]} 29. Qd2 {[%emt 0:01:04]} Be4 {[%emt 0:01:23]} 30. Bc3 {[%emt 0:01:58]} d5 {[%emt 0:00:15]} (30... Qg6 $142 31. Rf2 f6) 31. Qf2 {[%emt 0:00:11]} Qg6 {[%emt 0:00:28]} 32. Nf5 {[%emt 0:00:13]} Bxf5 {[%emt 0:00:11]} 33. Qxf5 {[%emt 0:00:02]} Qxf5 {[%emt 0:00:24]} 34. Rxf5 {[%emt 0:00:01][%mdl 4096] Endgame KRB-KR} Rd8 {[%emt 0:01:00]} (34... Rc6 $142 35. Rxd5 h6) 35. Rg5+ {[%emt 0:00:04]} Kf8 {[%emt 0:00:05]} 36. Bb4+ {[%emt 0:00:03]} Ke8 {[%emt 0:00:03]} 37. Re5+ {[%emt 0:00:03]} Kd7 {[%emt 0:00:06]} 38. Rxd5+ {[%emt 0:00:04]} Kc8 {[%emt 0:00:03]} 39. Rxd8+ {[%emt 0:00:10]} Kxd8 {[%emt 0:00:01]} 40. Kg1 {[%emt 0:00:00]} Kd7 {[%emt 0:00:00]} 41. Kf2 {[%emt 0:00:19] Weighted Error Value: White=0.37/Black=0.59} 1-0

[Event "Mongolian Championship Women 2022"]
[Site "Chingis Khentii"]
[Date "2022.05.19"]
[Round "7.6"]
[White "Anu, Bayar"]
[Black "Altantuya, Boldbaatar"]
[Result "0-1"]
[ECO "E11"]
[WhiteElo "2102"]
[BlackElo "2263"]
[Annotator "TA"]
[PlyCount "93"]
[EventDate "2022.05.12"]
[EventType "tourn"]
[EventCountry "MGL"]
[SourceTitle "playchess.com"]
[Source "ChessBase"]
[SourceQuality "1"]
[TimeControl "40/5400+30:1800+30"]

{[%evp 12,93,17,0,10,8,22,-17,-7,-12,-6,-3,-9,-10,-2,-6,-4,-10,-12,-95,-32,-109,-110,-118,-110,-257,-227,-256,-232,-224,-216,-391,-216,-315,-181,-501,-515,-910,-278,-270,-269,-257,-250,-415,-418,-457,-425,-716,-606,-809,-633,-588,-550,-530,-518,-506,-503,-451,-510,-503,-496,-474,-447,-505,-486,-5608,-2836,-5382,-5265,-5591,-4918,-4802,-4090,-29979,-29980,-29981,-29981,-29986,-29982,-29984,-29985,-29985,-29986,-29990]} 1. d4 {[%emt 0:00:02]} e6 {[%emt 0:00:01]} 2. c4 {[%emt 0:00:09]} Bb4+ {[%emt 0:00:10]} 3. Bd2 {[%emt 0:01:47]} a5 {[%emt 0:00:09]} 4. g3 {[%emt 0:00:46]} Nf6 {[%emt 0:03:51]} 5. Bg2 {[%emt 0:00:16]} d5 {[%emt 0:00:50]} 6. Nf3 {[%emt 0:05:36][%cal Bg1f3,Bf3e5,Be5c4][%mdl 32]} O-O {[%emt 0:01:30]} 7. O-O {[%emt 0:00:11] 7.Qc2 injects fresh life into this line.} dxc4 {[%emt 0:03:16] E11: Bogo-Indian.} 8. Bg5 {[%emt 0:08:14]} Be7 {[%emt 0:03:30]} 9. Ne5 {[%emt 0:11:08]} h6 {[%emt 0:00:19] [#] The position is equal.} 10. Bf4 $146 {[%emt 0:02:21]} ({Predecessor:} 10. Bxf6 Bxf6 11. Na3 c5 12. Naxc4 cxd4 13. Rc1 Ra6 14. a4 Nc6 15. Nxc6 bxc6 16. f4 {0-1 (55) Gupta,A (2630)-Miezis,N (2548) Cappelle la Grande 2014}) 10... Nd5 {[%emt 0:06:09]} 11. Nxc4 {[%emt 0:00:28]} Nc6 {[%emt 0:01:37]} 12. Bc1 {[%emt 0:11:10]} b5 $36 {[%emt 0:08:38][%mdl 2048] Black has good play.} 13. Ne3 {[%emt 0:02:08]} b4 {[%emt 0:02:04]} 14. Nxd5 {[%emt 0:12:03]} exd5 {[%emt 0:00:03]} 15. e4 {[%emt 0:03:02]} (15. a3 $11 {keeps the balance.}) 15... Ba6 {[%emt 0:02:54]} (15... dxe4 $1 $17 {Strongly threatening ...Ba6.} 16. Bxe4 Ra6) 16. Re1 {[%emt 0:00:27]} (16. Be3 $15) 16... dxe4 $17 {[%emt 0:01:25]} 17. Bxe4 {[%emt 0:01:42]} Nxd4 {[%emt 0:01:11][%cal Od4e2]} 18. Bxa8 {[%emt 0:05:39] This move loses the game for White.} (18. Be3 $17 Ne2+ 19. Kg2 Qxd1 20. Rxd1) 18... Ne2+ $19 {[%emt 0:00:06]} 19. Kg2 {[%emt 0:00:06] And now Qxd8 would win.} ({Don't play} 19. Qxe2 Bxe2 20. Be4 Bc5 $1 $19) 19... Qxa8+ {[%emt 0:00:24]} 20. f3 {[%emt 0:00:10]} Re8 $1 {[%emt 0:15:57]} 21. Nd2 $2 {[%emt 0:13:52]} (21. a3) 21... Bg5 {[%emt 0:09:24]} (21... Bf6 $142 22. h3 Re3) 22. Nb3 {[%emt 0:06:58]} (22. a3 $142 bxa3 23. Rxa3 Nxc1 24. Qxc1) 22... Bxc1 {[%emt 0:02:33]} (22... Rd8 $142 23. Qc2 Nxc1 24. Raxc1 a4) 23. Nxc1 $2 {[%emt 0:00:11]} (23. Rxc1 Nxc1 24. Qxc1) 23... Re3 {[%emt 0:10:00]} 24. Rf1 {[%emt 0:00:35] [#]} (24. Nxe2 $142 Rxf3 25. Kg1) 24... Nxc1 $2 {[%emt 0:00:21]} (24... Nd4 $1 {[%mdl 512]} 25. Nb3 Re2+ 26. Qxe2 Nxe2) 25. Rxc1 {[%emt 0:01:27]} Bxf1+ {[%emt 0:05:55]} 26. Qxf1 {[%emt 0:00:04][%mdl 4096] Endgame [#] KQR-KQR} Qd5 $1 {[%emt 0:02:07]} 27. Rd1 {[%emt 0:06:48] Against Qd2+} (27. Qf2 Rxf3 28. Qxf3 Qd2+ 29. Qf2 Qxc1 30. b3) 27... Qxa2 {[%emt 0:01:58]} 28. Rd8+ {[%emt 0:00:03]} Kh7 {[%emt 0:00:02]} 29. Qf2 {[%emt 0:00:11]} (29. Rd2 $142 g6 30. Qb5) 29... Qb3 {[%emt 0:02:32]} 30. Rf8 {[%emt 0:02:38]} Qd3 {[%emt 0:00:22]} 31. Rd8 {[%emt 0:01:43]} Qe2 {[%emt 0:00:09]} 32. Ra8 {[%emt 0:01:59]} Qxf2+ {[%emt 0:00:17]} 33. Kxf2 {[%emt 0:00:03] KR-KR} Rb3 {[%emt 0:00:06]} 34. Rxa5 {[%emt 0:00:19]} Rxb2+ {[%emt 0:00:04]} 35. Ke3 {[%emt 0:00:19]} Rc2 {[%emt 0:01:15]} 36. Rb5 {[%emt 0:00:12]} c5 {[%emt 0:00:06][%cal Bc7c5,Bc5c4,Bc4c3][%mdl 32]} 37. h4 {[%emt 0:00:19]} Rc3+ {[%emt 0:00:21]} 38. Ke4 {[%emt 0:00:10]} (38. Kd2 $142) 38... b3 {[%emt 0:00:06][%cal Bb4b3,Bb3b2][%mdl 32] Threatens to win with ...c4.} 39. g4 {[%emt 0:00:11]} c4 {[%emt 0:00:08]} 40. f4 {[%emt 0:00:00]} Rc2 {[%emt 0:00:00]} 41. g5 {[%emt 0:01:50]} hxg5 {[%emt 0:01:16]} 42. hxg5 {[%emt 0:00:10]} b2 {[%emt 0:00:10] Black mates.} 43. f5 {[%emt 0:00:04]} c3 {[%emt 0:00:15]} 44. Rb6 {[%emt 0:00:20]} Rc1 {[%emt 0:00:07]} 45. g6+ {[%emt 0:00:07]} fxg6 {[%emt 0:00:03]} 46. fxg6+ {[%emt 0:00:05]} Kh6 {[%emt 0:00:04]} 47. Kd4 {[%emt 0:35:57] Weighted Error Value: White=0.67/Black=0.34} 0-1